[Event "Titled Tuesday Blitz April 18 Early 2023"]
[White "littlepillow2010"]
[Black "Quirke, Jeffrey"]
[BlackFideId "2013029"]
[WhiteElo "2403"]
[BlackElo "2247"]
[Result "1-0"]
[Round "10"]
[TimeControl "180+2"]
[Date "2023.04.18"]
[WhiteClock "0:00:21"]
[BlackClock "0:00:20"]

1. e4 {[%clk 0:03:00]}  Nf6 {[%clk 0:02:58]} 2. e5 {[%clk 0:03:00]}  Nd5 {[%clk 0:02:57]} 3. d4 {[%clk 0:03:01]}  d6 {[%clk 0:02:57]} 4. Nf3 {[%clk 0:03:02]}  dxe5 {[%clk 0:02:55]} 5. Nxe5 {[%clk 0:03:02]}  c6 {[%clk 0:02:54]} 6. Be2 {[%clk 0:03:00]}  Bf5 {[%clk 0:02:54]} 7. O-O {[%clk 0:02:57]}  Nd7 {[%clk 0:02:54]} 8. Nxd7 {[%clk 0:02:56]}  Qxd7 {[%clk 0:02:54]} 9. a3 {[%clk 0:02:55]}  e6 {[%clk 0:02:53]} 10. c4 {[%clk 0:02:55]}  Nf6 {[%clk 0:02:53]} 11. Nc3 {[%clk 0:02:56]}  Be7 {[%clk 0:02:50]} 12. Be3 {[%clk 0:02:56]}  O-O {[%clk 0:02:49]} 13. Bf3 {[%clk 0:02:56]}  Rac8 {[%clk 0:02:40]} 14. Qe2 {[%clk 0:02:56]}  Rfd8 {[%clk 0:02:31]} 15. Rfd1 {[%clk 0:02:54]}  Qc7 {[%clk 0:02:29]} 16. b4 {[%clk 0:02:50]}  a6 {[%clk 0:02:12]} 17. h4 {[%clk 0:02:40]}  h6 {[%clk 0:02:12]} 18. g4 {[%clk 0:02:35]}  Bh7 {[%clk 0:02:10]} 19. g5 {[%clk 0:02:33]}  hxg5 {[%clk 0:02:10]} 20. hxg5 {[%clk 0:02:34]}  Ne8 {[%clk 0:01:56]} 21. Bh5 {[%clk 0:02:20]}  Bf5 {[%clk 0:01:44]} 22. Bg4 {[%clk 0:02:14]}  Bxg4 {[%clk 0:01:29]} 23. Qxg4 {[%clk 0:02:15]}  Nd6 {[%clk 0:01:29]} 24. Bf4 {[%clk 0:02:11]}  Qd7 {[%clk 0:01:26]} 25. Bxd6 {[%clk 0:02:10]}  Bxd6 {[%clk 0:01:25]} 26. Ne4 {[%clk 0:02:11]}  Qe7 {[%clk 0:01:11]} 27. Kg2 {[%clk 0:01:09]}  Kf8 {[%clk 0:01:10]} 28. Rh1 {[%clk 0:01:03]}  Ke8 {[%clk 0:01:10]} 29. Rh7 {[%clk 0:01:01]}  Qf8 {[%clk 0:01:02]} 30. Rah1 {[%clk 0:00:54]}  Kd7 {[%clk 0:01:02]} 31. d5 {[%clk 0:00:49]}  cxd5 {[%clk 0:00:57]} 32. cxd5 {[%clk 0:00:50]}  Rc2 {[%clk 0:00:38]} 33. dxe6+ {[%clk 0:00:45]}  fxe6 {[%clk 0:00:38]} 34. Rd1 {[%clk 0:00:30]}  Kc7 {[%clk 0:00:38]} 35. Qxe6 {[%clk 0:00:26]}  Re8 {[%clk 0:00:23]} 36. Qxd6+ {[%clk 0:00:20]}  Qxd6 {[%clk 0:00:22]} 37. Nxd6 {[%clk 0:00:21]}  Ree2 {[%clk 0:00:22]} 38. Rxg7+ {[%clk 0:00:21]}  Kb8 {[%clk 0:00:20]} 39. Rxb7+ {[%clk 0:00:20]}  Ka8 {[%clk 0:00:20]} 40. Rf7 {[%clk 0:00:21]} 1-0


[Site "https://www.chess.com"]

[Event "Titled Tuesday Blitz April 18 Early 2023"]
[White "Leve, Nitai"]
[Black "Tyagi, Kushan"]
[WhiteFideId "2006898"]
[BlackFideId "2040069"]
[WhiteElo "2144"]
[BlackElo "2293"]
[Result "1-0"]
[Round "10"]
[TimeControl "180+2"]
[Date "2023.04.18"]
[WhiteClock "0:00:18"]
[BlackClock "0:00:02"]

1. e4 {[%clk 0:03:00]}  c5 {[%clk 0:02:57]} 2. Nf3 {[%clk 0:03:00]}  e6 {[%clk 0:02:57]} 3. d4 {[%clk 0:03:00]}  cxd4 {[%clk 0:02:58]} 4. Nxd4 {[%clk 0:03:00]}  a6 {[%clk 0:02:59]} 5. Nc3 {[%clk 0:03:01]}  Qc7 {[%clk 0:02:59]} 6. Bd3 {[%clk 0:03:00]}  Nf6 {[%clk 0:02:58]} 7. O-O {[%clk 0:03:00]}  Bc5 {[%clk 0:02:58]} 8. Nb3 {[%clk 0:02:59]}  Be7 {[%clk 0:02:59]} 9. Qf3 {[%clk 0:02:59]}  d6 {[%clk 0:02:55]} 10. Bg5 {[%clk 0:02:59]}  Nbd7 {[%clk 0:02:55]} 11. Rad1 {[%clk 0:02:57]}  b5 {[%clk 0:02:52]} 12. a3 {[%clk 0:02:56]}  Bb7 {[%clk 0:02:52]} 13. Qg3 {[%clk 0:02:55]}  O-O {[%clk 0:02:32]} 14. f4 {[%clk 0:02:50]}  Kh8 {[%clk 0:02:12]} 15. Qh4 {[%clk 0:02:49]}  Rg8 {[%clk 0:01:48]} 16. Rf3 {[%clk 0:02:46]}  Bf8 {[%clk 0:01:43]} 17. Rh3 {[%clk 0:02:44]}  h6 {[%clk 0:01:38]} 18. Kh1 {[%clk 0:02:16]}  e5 {[%clk 0:01:32]} 19. fxe5 {[%clk 0:02:03]}  dxe5 {[%clk 0:01:30]} 20. Rf1 {[%clk 0:02:03]}  Qb6 {[%clk 0:01:16]} 21. Nd5 {[%clk 0:01:59]}  Bxd5 {[%clk 0:01:11]} 22. exd5 {[%clk 0:01:58]}  Rc8 {[%clk 0:01:01]} 23. Bf5 {[%clk 0:01:46]}  Rc4 {[%clk 0:00:56]} 24. Qe1 {[%clk 0:01:35]}  Qd6 {[%clk 0:00:55]} 25. Nd2 {[%clk 0:01:10]}  Rd4 {[%clk 0:00:46]} 26. c3 {[%clk 0:01:06]}  Rxd5 {[%clk 0:00:44]} 27. Ne4 {[%clk 0:01:06]}  Nxe4 {[%clk 0:00:34]} 28. Bxe4 {[%clk 0:00:51]}  f6 {[%clk 0:00:28]} 29. Bxd5 {[%clk 0:00:39]}  Qxd5 {[%clk 0:00:27]} 30. Qd2 {[%clk 0:00:38]}  Qe6 {[%clk 0:00:13]} 31. Bxh6 {[%clk 0:00:32]}  gxh6 {[%clk 0:00:11]} 32. Rxh6+ {[%clk 0:00:33]}  Kg7 {[%clk 0:00:11]} 33. Rh3 {[%clk 0:00:29]}  Kf7 {[%clk 0:00:11]} 34. Rhf3 {[%clk 0:00:27]}  Rg6 {[%clk 0:00:11]} 35. Qf2 {[%clk 0:00:24]}  Bc5 {[%clk 0:00:10]} 36. Qe2 {[%clk 0:00:24]}  Qg4 {[%clk 0:00:07]} 37. Qd2 {[%clk 0:00:21]}  Nf8 {[%clk 0:00:06]} 38. h3 {[%clk 0:00:21]}  Qe6 {[%clk 0:00:05]} 39. b4 {[%clk 0:00:20]}  Bb6 {[%clk 0:00:04]} 40. Rd3 {[%clk 0:00:19]}  Nh7 {[%clk 0:00:04]} 41. Rd6 {[%clk 0:00:19]}  Qf5 {[%clk 0:00:02]} 42. Rxf5 {[%clk 0:00:18]} 1-0


[Site "https://www.chess.com"]

[Event "Titled Tuesday Blitz April 18 Early 2023"]
[White "Marcziter, Dmitrii"]
[Black "Aanna12"]
[WhiteFideId "13900765"]
[WhiteElo "2162"]
[BlackElo "2216"]
[Result "1-0"]
[Round "10"]
[TimeControl "180+2"]
[Date "2023.04.18"]
[WhiteClock "0:01:14"]
[BlackClock "0:00:01"]

1. d4 {[%clk 0:03:00]}  Nf6 {[%clk 0:02:59]} 2. c4 {[%clk 0:03:01]}  c5 {[%clk 0:02:58]} 3. d5 {[%clk 0:03:00]}  b5 {[%clk 0:02:58]} 4. cxb5 {[%clk 0:03:01]}  a6 {[%clk 0:02:58]} 5. b6 {[%clk 0:03:01]}  Qxb6 {[%clk 0:02:57]} 6. Nc3 {[%clk 0:03:02]}  d6 {[%clk 0:02:57]} 7. Nf3 {[%clk 0:03:02]}  g6 {[%clk 0:02:57]} 8. Nd2 {[%clk 0:03:03]}  Bg7 {[%clk 0:02:56]} 9. e4 {[%clk 0:03:03]}  O-O {[%clk 0:02:55]} 10. Be2 {[%clk 0:03:03]}  Qd8 {[%clk 0:02:51]} 11. a4 {[%clk 0:03:01]}  Nbd7 {[%clk 0:02:50]} 12. a5 {[%clk 0:03:00]}  Rb8 {[%clk 0:02:41]} 13. Nc4 {[%clk 0:02:59]}  Ne8 {[%clk 0:02:40]} 14. O-O {[%clk 0:02:55]}  Nc7 {[%clk 0:02:40]} 15. Na4 {[%clk 0:02:54]}  Nb5 {[%clk 0:02:39]} 16. Nab6 {[%clk 0:02:53]}  Nxb6 {[%clk 0:02:38]} 17. Nxb6 {[%clk 0:02:52]}  Nd4 {[%clk 0:02:22]} 18. Bc4 {[%clk 0:02:50]}  Qc7 {[%clk 0:02:02]} 19. Ra3 {[%clk 0:02:47]}  Qa7 {[%clk 0:01:59]} 20. Qd3 {[%clk 0:02:39]}  f5 {[%clk 0:01:55]} 21. Nxc8 {[%clk 0:02:36]}  Rbxc8 {[%clk 0:01:51]} 22. Bxa6 {[%clk 0:02:34]}  Ra8 {[%clk 0:01:49]} 23. Bc4 {[%clk 0:02:32]}  f4 {[%clk 0:01:45]} 24. f3 {[%clk 0:02:25]}  Be5 {[%clk 0:01:42]} 25. Bd2 {[%clk 0:02:22]}  Rab8 {[%clk 0:01:39]} 26. Bc3 {[%clk 0:02:22]}  Rb7 {[%clk 0:01:22]} 27. Rd1 {[%clk 0:02:21]}  g5 {[%clk 0:01:06]} 28. h3 {[%clk 0:02:20]}  h5 {[%clk 0:01:05]} 29. Rb3 {[%clk 0:02:17]}  Rxb3 {[%clk 0:01:03]} 30. Bxb3 {[%clk 0:02:16]}  Nxb3 {[%clk 0:00:58]} 31. Bxe5 {[%clk 0:02:15]}  c4+ {[%clk 0:00:56]} 32. Bd4 {[%clk 0:02:15]}  cxd3 {[%clk 0:00:46]} 33. Bxa7 {[%clk 0:02:14]}  d2 {[%clk 0:00:45]} 34. Kf1 {[%clk 0:02:06]}  Ra8 {[%clk 0:00:42]} 35. Bb6 {[%clk 0:02:06]}  Rc8 {[%clk 0:00:40]} 36. Ke2 {[%clk 0:02:04]}  Rc2 {[%clk 0:00:39]} 37. a6 {[%clk 0:02:01]}  Rxb2 {[%clk 0:00:36]} 38. Bf2 {[%clk 0:01:53]}  Ra2 {[%clk 0:00:36]} 39. a7 {[%clk 0:01:52]}  Kf7 {[%clk 0:00:34]} 40. Kd3 {[%clk 0:01:51]}  Ke8 {[%clk 0:00:30]} 41. Kc3 {[%clk 0:01:49]}  Nc5 {[%clk 0:00:27]} 42. Bxc5 {[%clk 0:01:47]}  dxc5 {[%clk 0:00:27]} 43. Rxd2 {[%clk 0:01:45]}  Rxa7 {[%clk 0:00:27]} 44. Kc4 {[%clk 0:01:45]}  Ra5 {[%clk 0:00:24]} 45. Rb2 {[%clk 0:01:44]}  Kd7 {[%clk 0:00:24]} 46. e5 {[%clk 0:01:44]}  Ra4+ {[%clk 0:00:17]} 47. Kxc5 {[%clk 0:01:43]}  Ra5+ {[%clk 0:00:17]} 48. Rb5 {[%clk 0:01:43]}  Ra2 {[%clk 0:00:12]} 49. Rb7+ {[%clk 0:01:42]}  Kd8 {[%clk 0:00:11]} 50. d6 {[%clk 0:01:41]}  exd6+ {[%clk 0:00:10]} 51. Kxd6 {[%clk 0:01:41]}  Rd2+ {[%clk 0:00:10]} 52. Ke6 {[%clk 0:01:41]}  Rxg2 {[%clk 0:00:09]} 53. Kf7 {[%clk 0:01:41]}  Re2 {[%clk 0:00:09]} 54. e6 {[%clk 0:01:41]}  g4 {[%clk 0:00:08]} 55. hxg4 {[%clk 0:01:41]}  hxg4 {[%clk 0:00:08]} 56. fxg4 {[%clk 0:01:41]}  f3 {[%clk 0:00:09]} 57. Rb3 {[%clk 0:01:29]}  f2 {[%clk 0:00:07]} 58. Rf3 {[%clk 0:01:29]}  Kc7 {[%clk 0:00:05]} 59. e7 {[%clk 0:01:28]}  Kd7 {[%clk 0:00:03]} 60. Rd3+ {[%clk 0:01:24]}  Kc7 {[%clk 0:00:02]} 61. Rd1 {[%clk 0:01:16]}  Re1 {[%clk 0:00:01]} 62. e8=Q {[%clk 0:01:14]} 1-0


[Site "https://www.chess.com"]

[Event "Titled Tuesday Blitz April 18 Early 2023"]
[White "Kula, Robert"]
[Black "hsd2016"]
[WhiteFideId "1101218"]
[WhiteElo "2180"]
[BlackElo "2193"]
[Result "0-1"]
[Round "10"]
[TimeControl "180+2"]
[Date "2023.04.18"]
[WhiteClock "0:00:36"]
[BlackClock "0:00:10"]

1. d4 {[%clk 0:02:53]}  d5 {[%clk 0:02:56]} 2. c4 {[%clk 0:02:52]}  c6 {[%clk 0:02:56]} 3. Nc3 {[%clk 0:02:52]}  Nf6 {[%clk 0:02:55]} 4. a4 {[%clk 0:02:52]}  Bf5 {[%clk 0:02:51]} 5. e3 {[%clk 0:02:51]}  e6 {[%clk 0:02:50]} 6. Nf3 {[%clk 0:02:51]}  Nbd7 {[%clk 0:02:48]} 7. Be2 {[%clk 0:02:51]}  Bd6 {[%clk 0:02:46]} 8. c5 {[%clk 0:02:50]}  Bc7 {[%clk 0:02:45]} 9. O-O {[%clk 0:02:49]}  O-O {[%clk 0:02:45]} 10. h3 {[%clk 0:02:49]}  h6 {[%clk 0:02:45]} 11. b4 {[%clk 0:02:47]}  a6 {[%clk 0:02:44]} 12. Rb1 {[%clk 0:02:37]}  Bxb1 {[%clk 0:02:43]} 13. Nxb1 {[%clk 0:02:36]}  Ne4 {[%clk 0:02:43]} 14. Qc2 {[%clk 0:02:35]}  Ndf6 {[%clk 0:02:42]} 15. b5 {[%clk 0:02:32]}  axb5 {[%clk 0:02:41]} 16. axb5 {[%clk 0:02:32]}  cxb5 {[%clk 0:02:41]} 17. Bxb5 {[%clk 0:02:32]}  Qe7 {[%clk 0:02:39]} 18. Bd3 {[%clk 0:02:30]}  e5 {[%clk 0:02:31]} 19. Bb2 {[%clk 0:02:27]}  exd4 {[%clk 0:02:28]} 20. Bxd4 {[%clk 0:02:27]}  Rfc8 {[%clk 0:02:27]} 21. Nc3 {[%clk 0:02:24]}  Nxc5 {[%clk 0:01:59]} 22. Nxd5 {[%clk 0:02:21]}  Nxd5 {[%clk 0:01:53]} 23. Bxc5 {[%clk 0:02:20]}  Bh2+ {[%clk 0:01:45]} 24. Kxh2 {[%clk 0:02:19]}  Rxc5 {[%clk 0:01:46]} 25. Qb3 {[%clk 0:02:17]}  Rd8 {[%clk 0:01:37]} 26. Nd4 {[%clk 0:02:16]}  Rc3 {[%clk 0:01:27]} 27. Qb1 {[%clk 0:02:12]}  Qe5+ {[%clk 0:01:22]} 28. g3 {[%clk 0:02:11]}  Rc7 {[%clk 0:00:55]} 29. Qb5 {[%clk 0:01:57]}  Qf6 {[%clk 0:00:47]} 30. Be4 {[%clk 0:01:47]}  Nc3 {[%clk 0:00:45]} 31. Qd3 {[%clk 0:01:39]}  Nxe4 {[%clk 0:00:41]} 32. Qxe4 {[%clk 0:01:40]}  Re7 {[%clk 0:00:36]} 33. Qb1 {[%clk 0:01:35]}  Red7 {[%clk 0:00:34]} 34. Kg1 {[%clk 0:01:34]}  Qe5 {[%clk 0:00:26]} 35. Qb6 {[%clk 0:01:30]}  Qh5 {[%clk 0:00:22]} 36. Kg2 {[%clk 0:01:29]}  Qd5+ {[%clk 0:00:21]} 37. Kg1 {[%clk 0:01:29]}  Rd6 {[%clk 0:00:21]} 38. Qb4 {[%clk 0:01:27]}  Rg6 {[%clk 0:00:20]} 39. Rb1 {[%clk 0:01:26]}  b6 {[%clk 0:00:16]} 40. Qe7 {[%clk 0:01:22]}  Rdd6 {[%clk 0:00:15]} 41. Qe8+ {[%clk 0:01:16]}  Kh7 {[%clk 0:00:16]} 42. Rb5 {[%clk 0:01:13]}  Qc4 {[%clk 0:00:15]} 43. Rf5 {[%clk 0:01:08]}  Rdf6 {[%clk 0:00:14]} 44. Qe4 {[%clk 0:01:02]}  Rxf5 {[%clk 0:00:14]} 45. Qxf5 {[%clk 0:01:03]}  Qc1+ {[%clk 0:00:11]} 46. Kg2 {[%clk 0:01:01]}  Qc7 {[%clk 0:00:12]} 47. h4 {[%clk 0:01:00]}  Kg8 {[%clk 0:00:12]} 48. h5 {[%clk 0:00:59]}  Rf6 {[%clk 0:00:13]} 49. Qd5 {[%clk 0:00:57]}  Qd6 {[%clk 0:00:10]} 50. Qa8+ {[%clk 0:00:54]}  Qf8 {[%clk 0:00:10]} 51. Qe4 {[%clk 0:00:54]}  Qb8 {[%clk 0:00:09]} 52. f4 {[%clk 0:00:52]}  b5 {[%clk 0:00:09]} 53. Nc6 {[%clk 0:00:50]}  Qc7 {[%clk 0:00:08]} 54. Ne7+ {[%clk 0:00:49]}  Kf8 {[%clk 0:00:09]} 55. Nd5 {[%clk 0:00:50]}  Qc6 {[%clk 0:00:04]} 56. Nxf6 {[%clk 0:00:48]}  Qxf6 {[%clk 0:00:05]} 57. Qa8+ {[%clk 0:00:47]}  Ke7 {[%clk 0:00:05]} 58. Qb7+ {[%clk 0:00:48]}  Kf8 {[%clk 0:00:04]} 59. Qxb5 {[%clk 0:00:48]}  Qe6 {[%clk 0:00:02]} 60. Qd3 {[%clk 0:00:45]}  Qc6+ {[%clk 0:00:01]} 61. e4 {[%clk 0:00:45]}  f6 {[%clk 0:00:02]} 62. Kh3 {[%clk 0:00:44]}  Kf7 {[%clk 0:00:02]} 63. g4 {[%clk 0:00:44]}  Ke7 {[%clk 0:00:01]} 64. Kg3 {[%clk 0:00:41]}  Qc1 {[%clk 0:00:02]} 65. Qd5 {[%clk 0:00:41]}  Qg1+ {[%clk 0:00:02]} 66. Kf3 {[%clk 0:00:40]}  Qf1+ {[%clk 0:00:03]} 67. Ke3 {[%clk 0:00:40]}  Qe1+ {[%clk 0:00:03]} 68. Kd4 {[%clk 0:00:40]}  Qd1+ {[%clk 0:00:04]} 69. Kc5 {[%clk 0:00:40]}  Qxg4 {[%clk 0:00:04]} 70. f5 {[%clk 0:00:39]}  Qg1+ {[%clk 0:00:04]} 71. Kc6 {[%clk 0:00:38]}  Qc1+ {[%clk 0:00:04]} 72. Kb7 {[%clk 0:00:37]}  Qb2+ {[%clk 0:00:04]} 73. Kc8 {[%clk 0:00:37]}  Qc3+ {[%clk 0:00:04]} 74. Kb7 {[%clk 0:00:37]}  Qb4+ {[%clk 0:00:04]} 75. Kc6 {[%clk 0:00:37]}  Qa4+ {[%clk 0:00:04]} 76. Qb5 {[%clk 0:00:36]}  Qxe4+ {[%clk 0:00:04]} 77. Kc7 {[%clk 0:00:35]}  Qe5+ {[%clk 0:00:04]} 78. Kc8 {[%clk 0:00:35]}  Qxb5 {[%clk 0:00:03]} 79. Kc7 {[%clk 0:00:33]}  Qd7+ {[%clk 0:00:04]} 80. Kb6 {[%clk 0:00:33]}  Qxf5 {[%clk 0:00:05]} 81. Ka6 {[%clk 0:00:32]}  Qxh5 {[%clk 0:00:06]} 82. Kb7 {[%clk 0:00:33]}  Qf3+ {[%clk 0:00:06]} 83. Kb8 {[%clk 0:00:34]}  Qc3 {[%clk 0:00:06]} 84. Kb7 {[%clk 0:00:34]}  h5 {[%clk 0:00:07]} 85. Kb8 {[%clk 0:00:34]}  h4 {[%clk 0:00:08]} 86. Kb7 {[%clk 0:00:35]}  h3 {[%clk 0:00:09]} 87. Kb8 {[%clk 0:00:36]}  h2 {[%clk 0:00:09]} 88. Kb7 {[%clk 0:00:36]}  g5 {[%clk 0:00:10]} 0-1


[Site "https://www.chess.com"]

[Event "Titled Tuesday Blitz April 18 Early 2023"]
[White "Rodriguez Santiago, Jaime"]
[Black "Jaivardhan Raj"]
[WhiteFideId "3100898"]
[BlackFideId "25744437"]
[WhiteElo "2025"]
[BlackElo "1772"]
[Result "1-0"]
[Round "10"]
[TimeControl "180+2"]
[Date "2023.04.18"]
[WhiteClock "0:01:26"]
[BlackClock "0:01:52"]

1. c4 {[%clk 0:03:00]}  c5 {[%clk 0:02:58]} 2. Nc3 {[%clk 0:03:01]}  e5 {[%clk 0:02:56]} 3. g3 {[%clk 0:03:02]}  d6 {[%clk 0:02:56]} 4. Bg2 {[%clk 0:03:02]}  Nc6 {[%clk 0:02:57]} 5. e4 {[%clk 0:03:02]}  Nf6 {[%clk 0:02:57]} 6. d3 {[%clk 0:03:03]}  Be6 {[%clk 0:02:58]} 7. Nge2 {[%clk 0:03:03]}  Be7 {[%clk 0:02:58]} 8. a3 {[%clk 0:03:03]}  O-O {[%clk 0:02:57]} 9. O-O {[%clk 0:03:03]}  a5 {[%clk 0:02:57]} 10. Rb1 {[%clk 0:03:03]}  Nd4 {[%clk 0:02:56]} 11. Nxd4 {[%clk 0:03:00]}  exd4 {[%clk 0:02:56]} 12. Ne2 {[%clk 0:03:00]}  Nd7 {[%clk 0:02:56]} 13. f4 {[%clk 0:03:00]}  f5 {[%clk 0:02:56]} 14. exf5 {[%clk 0:03:00]}  Bxf5 {[%clk 0:02:56]} 15. Bxb7 {[%clk 0:03:01]}  Rb8 {[%clk 0:02:56]} 16. Bg2 {[%clk 0:02:58]}  Bg4 {[%clk 0:02:55]} 17. h3 {[%clk 0:02:57]}  Bh5 {[%clk 0:02:54]} 18. g4 {[%clk 0:02:57]}  Bf7 {[%clk 0:02:55]} 19. Ng3 {[%clk 0:02:55]}  Nf6 {[%clk 0:02:55]} 20. Bd2 {[%clk 0:02:49]}  d5 {[%clk 0:02:55]} 21. g5 {[%clk 0:02:47]}  Ne8 {[%clk 0:02:51]} 22. Qe2 {[%clk 0:02:34]}  dxc4 {[%clk 0:02:51]} 23. dxc4 {[%clk 0:02:35]}  d3 {[%clk 0:02:50]} 24. Qe4 {[%clk 0:02:32]}  Nd6 {[%clk 0:02:50]} 25. Qxd3 {[%clk 0:02:26]}  Nxc4 {[%clk 0:02:50]} 26. Qxd8 {[%clk 0:02:24]}  Rfxd8 {[%clk 0:02:50]} 27. Bc3 {[%clk 0:02:22]}  Bd6 {[%clk 0:02:45]} 28. Nf5 {[%clk 0:02:18]}  Bc7 {[%clk 0:02:40]} 29. Nxg7 {[%clk 0:02:09]}  Ne3 {[%clk 0:02:36]} 30. Rf2 {[%clk 0:02:04]}  Nd1 {[%clk 0:02:30]} 31. Rxd1 {[%clk 0:01:50]}  Rxd1+ {[%clk 0:02:29]} 32. Kh2 {[%clk 0:01:51]}  Re8 {[%clk 0:02:13]} 33. Nxe8 {[%clk 0:01:50]}  Bxe8 {[%clk 0:02:12]} 34. Bf3 {[%clk 0:01:46]}  Bxf4+ {[%clk 0:02:12]} 35. Kg2 {[%clk 0:01:46]}  Rd8 {[%clk 0:02:07]} 36. Bxa5 {[%clk 0:01:44]}  Rb8 {[%clk 0:02:04]} 37. Bd5+ {[%clk 0:01:44]}  Kg7 {[%clk 0:02:01]} 38. Bc3+ {[%clk 0:01:44]}  Kg6 {[%clk 0:02:01]} 39. Rxf4 {[%clk 0:01:44]}  Kxg5 {[%clk 0:02:01]} 40. Kg3 {[%clk 0:01:39]}  h5 {[%clk 0:01:59]} 41. h4+ {[%clk 0:01:37]}  Kg6 {[%clk 0:01:57]} 42. Rf6+ {[%clk 0:01:37]}  Kh7 {[%clk 0:01:57]} 43. Be4+ {[%clk 0:01:33]}  Kg8 {[%clk 0:01:57]} 44. Bd5+ {[%clk 0:01:30]}  Kh7 {[%clk 0:01:56]} 45. Rf8 {[%clk 0:01:30]}  Kg6 {[%clk 0:01:53]} 46. Be4+ {[%clk 0:01:27]}  Kh6 {[%clk 0:01:52]} 47. Rh8# {[%clk 0:01:26]} 1-0


[Site "https://www.chess.com"]

[Event "Titled Tuesday Blitz April 18 Early 2023"]
[White "Coelho, Ramyres Santana"]
[Black "Belov, Alexei"]
[WhiteFideId "2120690"]
[BlackFideId "4128206"]
[WhiteElo "1888"]
[BlackElo "2465"]
[Result "0-1"]
[Round "10"]
[TimeControl "180+2"]
[Date "2023.04.18"]
[WhiteClock "0:00:30"]
[BlackClock "0:00:14"]

1. e4 {[%clk 0:02:59]}  e6 {[%clk 0:02:59]} 2. d4 {[%clk 0:02:58]}  d5 {[%clk 0:03:00]} 3. Nc3 {[%clk 0:02:58]}  Nf6 {[%clk 0:03:00]} 4. e5 {[%clk 0:02:58]}  Ne4 {[%clk 0:03:00]} 5. f4 {[%clk 0:02:59]}  Qh4+ {[%clk 0:03:00]} 6. g3 {[%clk 0:02:55]}  Nxg3 {[%clk 0:03:00]} 7. hxg3 {[%clk 0:02:55]}  Qxh1 {[%clk 0:03:00]} 8. Nge2 {[%clk 0:02:54]}  Nc6 {[%clk 0:02:53]} 9. Be3 {[%clk 0:02:54]}  Bd7 {[%clk 0:02:52]} 10. Qd2 {[%clk 0:02:51]}  f6 {[%clk 0:02:51]} 11. O-O-O {[%clk 0:02:51]}  Qh5 {[%clk 0:02:51]} 12. Bg2 {[%clk 0:02:49]}  O-O-O {[%clk 0:02:48]} 13. a3 {[%clk 0:02:48]}  Ne7 {[%clk 0:02:39]} 14. Na2 {[%clk 0:02:39]}  Nf5 {[%clk 0:02:39]} 15. Bf2 {[%clk 0:02:36]}  Qg4 {[%clk 0:02:26]} 16. Qd3 {[%clk 0:02:25]}  h5 {[%clk 0:02:20]} 17. Bf3 {[%clk 0:02:23]}  Qg6 {[%clk 0:02:20]} 18. c4 {[%clk 0:02:20]}  Bc6 {[%clk 0:02:08]} 19. c5 {[%clk 0:02:16]}  a6 {[%clk 0:02:05]} 20. Nac3 {[%clk 0:02:12]}  Be7 {[%clk 0:01:48]} 21. b4 {[%clk 0:02:11]}  fxe5 {[%clk 0:01:48]} 22. dxe5 {[%clk 0:02:11]}  d4 {[%clk 0:01:37]} 23. Bxc6 {[%clk 0:02:09]}  dxc3 {[%clk 0:01:29]} 24. Bd7+ {[%clk 0:02:09]}  Kb8 {[%clk 0:01:27]} 25. c6 {[%clk 0:02:07]}  Rxd7 {[%clk 0:00:55]} 26. cxd7 {[%clk 0:01:59]}  Rd8 {[%clk 0:00:53]} 27. Qxc3 {[%clk 0:01:56]}  Qg4 {[%clk 0:00:49]} 28. Nd4 {[%clk 0:01:53]}  Nxd4 {[%clk 0:00:47]} 29. Qxd4 {[%clk 0:01:54]}  b6 {[%clk 0:00:44]} 30. Qc4 {[%clk 0:01:45]}  Qf3 {[%clk 0:00:40]} 31. Rd2 {[%clk 0:01:27]}  Qxa3+ {[%clk 0:00:39]} 32. Kd1 {[%clk 0:01:26]}  Bxb4 {[%clk 0:00:34]} 33. Ra2 {[%clk 0:01:13]}  Rxd7+ {[%clk 0:00:28]} 34. Ke2 {[%clk 0:01:11]}  Qc3 {[%clk 0:00:24]} 35. Qxa6 {[%clk 0:01:03]}  Rd2+ {[%clk 0:00:20]} 36. Rxd2 {[%clk 0:01:02]}  Qxd2+ {[%clk 0:00:21]} 37. Kf1 {[%clk 0:01:01]}  Qd1+ {[%clk 0:00:21]} 38. Kg2 {[%clk 0:01:00]}  Qd5+ {[%clk 0:00:21]} 39. Kf1 {[%clk 0:01:00]}  Bc5 {[%clk 0:00:21]} 40. Bxc5 {[%clk 0:00:57]}  Qxc5 {[%clk 0:00:21]} 41. Qe2 {[%clk 0:00:54]}  g6 {[%clk 0:00:21]} 42. Qd3 {[%clk 0:00:53]}  b5 {[%clk 0:00:07]} 43. Qxg6 {[%clk 0:00:52]}  b4 {[%clk 0:00:08]} 44. Qxh5 {[%clk 0:00:48]}  Qc4+ {[%clk 0:00:08]} 45. Kf2 {[%clk 0:00:47]}  b3 {[%clk 0:00:08]} 46. Qd1 {[%clk 0:00:41]}  Qc3 {[%clk 0:00:06]} 47. Qd8+ {[%clk 0:00:33]}  Kb7 {[%clk 0:00:06]} 48. Ke2 {[%clk 0:00:34]}  b2 {[%clk 0:00:06]} 49. Qd1 {[%clk 0:00:32]}  Qc4+ {[%clk 0:00:06]} 50. Ke1 {[%clk 0:00:30]}  Qb4+ {[%clk 0:00:06]} 51. Ke2 {[%clk 0:00:25]}  b1=Q {[%clk 0:00:07]} 52. Qxb1 {[%clk 0:00:20]}  Qxb1 {[%clk 0:00:08]} 53. Kf3 {[%clk 0:00:21]}  Qd3+ {[%clk 0:00:07]} 54. Kg4 {[%clk 0:00:21]}  Qf5+ {[%clk 0:00:07]} 55. Kh4 {[%clk 0:00:21]}  Kc6 {[%clk 0:00:08]} 56. g4 {[%clk 0:00:21]}  Qxf4 {[%clk 0:00:09]} 57. Kh5 {[%clk 0:00:22]}  Qxe5+ {[%clk 0:00:09]} 58. g5 {[%clk 0:00:22]}  Kd5 {[%clk 0:00:10]} 59. Kh6 {[%clk 0:00:22]}  c5 {[%clk 0:00:10]} 60. g6 {[%clk 0:00:23]}  Qh2+ {[%clk 0:00:10]} 61. Kg5 {[%clk 0:00:22]}  Qg3+ {[%clk 0:00:10]} 62. Kf6 {[%clk 0:00:23]}  Qxg6+ {[%clk 0:00:11]} 63. Kxg6 {[%clk 0:00:23]}  c4 {[%clk 0:00:12]} 64. Kf6 {[%clk 0:00:24]}  c3 {[%clk 0:00:12]} 65. Kg5 {[%clk 0:00:24]}  c2 {[%clk 0:00:13]} 66. Kf4 {[%clk 0:00:25]}  c1=Q+ {[%clk 0:00:14]} 67. Kf3 {[%clk 0:00:26]}  Qd2 {[%clk 0:00:14]} 68. Kg3 {[%clk 0:00:26]}  Qe1+ {[%clk 0:00:14]} 69. Kf3 {[%clk 0:00:27]}  e5 {[%clk 0:00:14]} 70. Kg2 {[%clk 0:00:28]}  e4 {[%clk 0:00:14]} 71. Kh3 {[%clk 0:00:28]}  Qg1 {[%clk 0:00:13]} 72. Kh4 {[%clk 0:00:28]}  Ke5 {[%clk 0:00:13]} 73. Kh3 {[%clk 0:00:29]}  Kf4 {[%clk 0:00:13]} 74. Kh4 {[%clk 0:00:30]}  Qg4# {[%clk 0:00:14]} 0-1


[Site "https://www.chess.com"]